fUSD/lending_fUSD_20240727
["ID","MTS","AMOUNT","RATE_DAILY","PERIOD"]
[333346611,1722063086316,-3500.4,0.00010998,2]
[333346612,1722063086326,-1178.4,0.00010998,2]
[333346613,1722063086335,-1178.4,0.00010998,2]
[333346614,1722063086345,-1178.4,0.00010998,2]
[333346615,1722063086355,-3500.4,0.00010998,2]
[333346616,1722063086365,-1178.4,0.00010998,2]
[333346617,1722063086375,-3500.4,0.00010998,2]
[333346618,1722063086384,-3500.4,0.00010998,2]
[333346619,1722063086394,-1178.4,0.00010998,2]
[333346620,1722063086403,-1178.45,0.00010998,2]
[333346621,1722063086413,-3500.4,0.00010998,2]
[333346622,1722063086422,-3500.6,0.00010998,2]
[333346623,1722063086432,-1883.79,0.00010998,2]
[333346624,1722063086442,-1883.79,0.00010998,2]
[333346625,1722063086452,-1883.79,0.00010998,2]
[333346626,1722063086461,-1883.79,0.00010998,2]
[333346627,1722063086471,-1883.79,0.00010998,2]
[333346628,1722063086481,-1883.79,0.00010998,2]
[333346629,1722063086490,-1883.95981346,0.00010998,2]
[333346630,1722063086500,-3414.68,0.00010998,2]
[333346631,1722063086509,-6222.97,0.00010998,2]
[333346632,1722063086518,-3414.68,0.00010998,2]
[333346633,1722063086528,-4608.64955224,0.00010998,2]
[333346634,1722063086544,-1614.32044776,0.00010998,2]
[333346635,1722063086554,-3414.68,0.00010998,2]
[333346636,1722063086565,-6222.97,0.00010998,2]
[333346637,1722063086575,-6222.97,0.00010998,2]
[333346638,1722063086585,-6222.97,0.00010998,2]
[333346639,1722063086595,-6222.97,0.00010998,2]
[333346640,1722063086605,-3414.68,0.00010998,2]
[333346641,1722063086615,-6223.13526756,0.00010998,2]
[333346642,1722063086625,-3414.68,0.00010998,2]
[333346643,1722063086635,-3414.68,0.00010998,2]
[333346644,1722063086644,-3414.68,0.00010998,2]
[333346645,1722063086655,-3414.68,0.00010998,2]
[333346646,1722063086665,-3414.77298003,0.00010998,2]
[333346647,1722063086675,-6382.9,0.00010998,2]
[333346648,1722063086685,-6382.9,0.00010998,2]
[333346649,1722063086695,-5472.52665327,0.00010998,2]
[333346650,1722063086802,-301.100539,0.00010997,2]
[333346651,1722063086811,-301.100539,0.00010997,2]
[333346652,1722063086821,-837.92229946,0.00010998,2]
[333346653,1722063086834,-72.45104727,0.00010998,2]
[333346654,1722063086844,-267.99395273,0.00010998,2]
[333346655,1722063086856,-3435.2817797,0.00010998,2]
[333346656,1722063086867,-270.462826,0.00010998,2]
[333346657,1722063086879,-819.48864063,0.00010998,2]
[333346658,1722063086890,-1589.67280094,0.00010998,2]
[333346659,1722063086900,-6382.9,0.00010998,2]
[333346660,1722063086910,-6382.9,0.00010998,2]
[333346661,1722063086920,-6382.91,0.00010998,2]
[333346662,1722063086930,-597.55,0.00010998,2]
[333346663,1722063086940,-597.55,0.00010998,2]
[333346664,1722063086950,-3402.82,0.00010998,2]
[333346665,1722063086959,-597.55,0.00010998,2]
[333346666,1722063086970,-597.55,0.00010998,2]
[333346667,1722063086979,-3402.82,0.00010998,2]
[333346668,1722063086989,-597.55,0.00010998,2]
[333346669,1722063086999,-3402.82,0.00010998,2]
[333346670,1722063087008,-3402.82,0.00010998,2]
[333346671,1722063087018,-597.55,0.00010998,2]
[333346672,1722063087030,-3402.82,0.00010998,2]
[333346673,1722063087039,-597.55,0.00010998,2]
[333346674,1722063087049,-3402.82,0.00010998,2]
[333346675,1722063087059,-597.55,0.00010998,2]
[333346676,1722063087069,-3402.82,0.00010998,2]
[333346677,1722063087078,-597.55,0.00010998,2]
[333346678,1722063087088,-3402.82,0.00010998,2]
[333346679,1722063087097,-597.55,0.00010998,2]
[333346680,1722063087107,-597.55,0.00010998,2]
[333346681,1722063087118,-3402.98715065,0.00010998,2]
[333346682,1722063087128,-597.55,0.00010998,2]
[333346683,1722063087139,-597.55,0.00010998,2]
[333346684,1722063087149,-597.55,0.00010998,2]
[333346685,1722063087159,-597.71095612,0.00010998,2]
[333346686,1722063087169,-2057.73,0.00010998,2]
[333346687,1722063087179,-2057.73,0.00010998,2]
[333346688,1722063087188,-2057.73,0.00010998,2]
[333346689,1722063087198,-2057.73,0.00010998,2]
[333346690,1722063087207,-2057.73,0.00010998,2]
[333346691,1722063087217,-2057.73,0.00010998,2]
[333346692,1722063087227,-838.52,0.00010998,2]
[333346693,1722063087237,-2057.94297599,0.00010998,2]
[333346694,1722063087248,-838.52,0.00010998,2]
[333346695,1722063087258,-838.52,0.00010998,2]
[333346696,1722063087268,-838.52,0.00010998,2]
[333346697,1722063087278,-838.52,0.00010998,2]
[333346698,1722063087288,-1798.79,0.00010998,2]
[333346699,1722063087297,-1798.79,0.00010998,2]
[333346700,1722063087307,-1798.79,0.00010998,2]
[333346701,1722063087319,-1798.79,0.00010998,2]
[333346702,1722063087328,-500.0,0.00010998,2]
[333346703,1722063087338,-1798.79,0.00010998,2]
[333346704,1722063087348,-500.0,0.00010998,2]
[333346705,1722063087358,-1798.79,0.00010998,2]
[333346706,1722063087367,-838.52,0.00010998,2]
[333346707,1722063087377,-500.0,0.00010998,2]
[333346708,1722063087387,-1798.8543,0.00010998,2]
[333346709,1722063087397,-838.52,0.00010998,2]
[333346710,1722063087406,-838.52,0.00010998,2]
[333346711,1722063087416,-500.0,0.00010998,2]
[333346712,1722063087426,-838.52,0.00010998,2]
[333346713,1722063087435,-810.06196678,0.00010998,2]
[333346714,1722063087454,-2432.26803322,0.00010998,2]
[333346715,1722063087463,-500.0,0.00010998,2]
[333346716,1722063087473,-838.52,0.00010998,2]
[333346717,1722063087483,-500.0,0.00010998,2]
[333346718,1722063087493,-838.52,0.00010998,2]
[333346719,1722063087503,-1482.8678811,0.00010998,2]
[333346720,1722063087515,-1759.4621189,0.00010998,2]
[333346721,1722063087524,-79.77726185,0.00010998,2]
[333346722,1722063087687,-272.02273815,0.00010998,2]
[333346723,1722063087718,-3242.33,0.00010998,2]
[333346724,1722063087728,-3242.33,0.00010998,2]
[333346725,1722063087740,-3242.33,0.00010998,2]
[333346726,1722063087751,-3242.33,0.00010998,2]
[333346727,1722063087762,-3242.33,0.00010998,2]
[333346728,1722063087772,-3242.33,0.00010998,2]
[333346729,1722063087781,-3242.3486736,0.00010998,2]
[333346730,1722063087790,-527.2,0.00010998,2]
[333346731,1722063087799,-527.2,0.00010998,2]
[333346732,1722063087809,-527.2,0.00010998,2]
[333346733,1722063087818,-527.2,0.00010998,2]
[333346734,1722063087827,-527.2,0.00010998,2]
[333346735,1722063087836,-527.2,0.00010998,2]
[333346736,1722063087845,-527.2,0.00010998,2]
[333346737,1722063087855,-527.2,0.00010998,2]
[333346738,1722063087864,-527.2,0.00010998,2]
[333346739,1722063087873,-527.2,0.00010998,2]
[333346740,1722063087882,-527.2,0.00010998,2]
[333346741,1722063087891,-527.2,0.00010998,2]
[333346742,1722063087900,-527.2,0.00010998,2]
[333346743,1722063087910,-1380.84,0.00010998,2]
[333346744,1722063087919,-527.2,0.00010998,2]
[333346745,1722063087929,-1380.84,0.00010998,2]
[333346746,1722063087938,-527.23489721,0.00010998,2]
[333346747,1722063087947,-1380.84,0.00010998,2]
[333346748,1722063087957,-151.0,0.00010998,2]
[333346749,1722063087966,-1380.84,0.00010998,2]
[333346750,1722063087976,-1380.84,0.00010998,2]
[333346751,1722063087985,-1380.84,0.00010998,2]
[333346752,1722063087994,-1380.84,0.00010998,2]
[333346753,1722063088004,-1380.84,0.00010998,2]
[333346754,1722063088013,-1380.95417838,0.00010998,2]
[333346755,1722063088023,-151.0,0.00010998,2]
[333346756,1722063088035,-151.0,0.00010998,2]
[333346757,1722063088045,-586.87,0.00010998,2]
[333346758,1722063088055,-586.87,0.00010998,2]
[333346759,1722063088065,-586.87,0.00010998,2]
[333346760,1722063088075,-2500.4,0.00010998,2]
[333346761,1722063088084,-586.87,0.00010998,2]
[333346762,1722063088094,-2500.4,0.00010998,2]
[333346763,1722063088106,-586.87,0.00010998,2]
[333346764,1722063088115,-2500.4,0.00010998,2]
[333346765,1722063088125,-586.87,0.00010998,2]
[333346766,1722063088135,-2500.4,0.00010998,2]
[333346767,1722063088144,-586.97667481,0.00010998,2]
[333346768,1722063088153,-2500.4,0.00010998,2]
[333346769,1722063088162,-151.0,0.00010998,2]
[333346770,1722063088172,-2500.4,0.00010998,2]
[333346771,1722063088183,-2500.44,0.00010998,2]
[333346772,1722063088192,-151.0,0.00010998,2]
[333346773,1722063088203,-960.76,0.00010998,2]
[333346774,1722063088212,-960.76,0.00010998,2]
[333346775,1722063088222,-960.76,0.00010998,2]
[333346776,1722063088231,-960.76,0.00010998,2]
[333346777,1722063088240,-1834.68,0.00010998,2]
[333346778,1722063088250,-960.76,0.00010998,2]
[333346779,1722063088259,-1834.68,0.00010998,2]
[333346780,1722063088269,-960.76,0.00010998,2]
[333346781,1722063088278,-960.76,0.00010998,2]
[333346782,1722063088288,-1834.68,0.00010998,2]
[333346783,1722063088298,-960.76,0.00010998,2]
[333346784,1722063088308,-1866.68,0.00010998,2]
[333346785,1722063088318,-1834.68,0.00010998,2]
[333346786,1722063088328,-1220.26,0.00010998,2]
[333346787,1722063088338,-960.94735317,0.00010998,2]
[333346788,1722063088347,-1866.68,0.00010998,2]
[333346789,1722063088358,-1220.26,0.00010998,2]
[333346790,1722063088368,-1834.68,0.00010998,2]
[333346791,1722063088377,-1866.68,0.00010998,2]
[333346792,1722063088386,-1220.26,0.00010998,2]
[333346793,1722063088396,-1834.68,0.00010998,2]
[333346794,1722063088405,-1866.68,0.00010998,2]
[333346795,1722063088415,-1220.26,0.00010998,2]
[333346796,1722063088426,-1834.68,0.00010998,2]
[333346797,1722063088435,-1866.68,0.00010998,2]
[333346798,1722063088445,-1220.26,0.00010998,2]
[333346799,1722063088455,-1834.68,0.00010998,2]
[333346800,1722063088465,-1866.68,0.00010998,2]
[333346801,1722063088475,-1220.26,0.00010998,2]
[333346802,1722063088485,-1834.86737584,0.00010998,2]
[333346803,1722063088495,-1220.26,0.00010998,2]
[333346804,1722063088505,-1866.68,0.00010998,2]
[333346805,1722063088515,-1220.26,0.00010998,2]
[333346806,1722063088527,-1866.68,0.00010998,2]
[333346807,1722063088538,-151.874162,0.00010998,2]
[333346808,1722063088549,-1866.68,0.00010998,2]
[333346809,1722063088560,-1220.26,0.00010998,2]
[333346810,1722063088571,-1866.68,0.00010998,2]
[333346811,1722063088581,-1220.26,0.00010998,2]
[333346812,1722063088591,-1866.68,0.00010998,2]
[333346813,1722063088601,-1220.26,0.00010998,2]
[333346814,1722063088611,-1866.68,0.00010998,2]
[333346815,1722063088621,-152.205577,0.00010998,2]
[333346816,1722063088630,-1866.68,0.00010998,2]
[333346817,1722063088640,-1866.68,0.00010998,2]
[333346818,1722063088651,-1866.84501882,0.00010998,2]
[333346819,1722063088660,-588.65,0.00010998,2]
[333346820,1722063088671,-588.65,0.00010998,2]
[333346821,1722063088682,-588.65,0.00010998,2]
[333346822,1722063088692,-588.65,0.00010998,2]
[333346823,1722063088702,-588.65,0.00010998,2]
[333346824,1722063088712,-588.65,0.00010998,2]
[333346825,1722063088722,-588.65,0.00010998,2]
[333346826,1722063088732,-1599.97,0.00010998,2]
[333346827,1722063088744,-1599.97,0.00010998,2]
[333346828,1722063088753,-1599.97,0.00010998,2]
[333346829,1722063088762,-1599.97,0.00010998,2]
[333346830,1722063088772,-1599.97,0.00010998,2]
[333346831,1722063088782,-1599.97,0.00010998,2]
[333346832,1722063088794,-151.0,0.00010998,2]
[333346833,1722063088803,-1599.97,0.00010998,2]
[333346834,1722063088813,-1390.21,0.00010998,2]
[333346835,1722063088823,-1599.97,0.00010998,2]
[333346836,1722063088832,-151.0,0.00010998,2]
[333346837,1722063088844,-1390.21,0.00010998,2]
[333346838,1722063088854,-1599.97,0.00010998,2]
[333346839,1722063088865,-1390.21,0.00010998,2]
[333346840,1722063088875,-1599.97,0.00010998,2]
[333346841,1722063088886,-1390.21,0.00010998,2]
[333346842,1722063088899,-848.21845384,0.00010998,2]
[333346843,1722063088919,-690.60504577,0.00010998,2]
[333346853,1722064052623,500.0,0.00019,120]
[333346854,1722064082357,500.0,0.00019,120]
[333346855,1722064088711,500.0,0.00019,120]
[333347007,1722064231907,-454.97,8.219e-05,2]
[333347009,1722064231916,-333.92,9.878e-05,2]
[333347011,1722064231926,-200.0,9.878e-05,2]
[333347013,1722064231935,-150.0,9.888e-05,2]
[333347014,1722064231944,-250.0,9.891e-05,2]
[333347015,1722064231954,-300.0,9.898e-05,2]
[333347016,1722064231963,-4889.7268127,9.899e-05,2]
[333347017,1722064232254,-3414.5,9.899e-05,2]
[333347018,1722064232277,-508.11036067,9.899e-05,2]
[333347019,1722064232288,-1187.66282663,9.899e-05,2]
[333347020,1722064232297,-320.0,9.901e-05,2]
[333347021,1722064232308,-1192.33717337,9.924e-05,2]
[333347022,1722064232322,-1054.8607206,9.924e-05,2]
[333347023,1722064232334,-2376.00210603,9.924e-05,2]
[333347024,1722064232344,-680.0,9.999e-05,2]
[333347025,1722064232354,-1250.0,0.0001,2]
[333347026,1722064232363,-454.97,0.00010471,2]
[333347027,1722064232373,-783.92,0.00010471,2]
[333347028,1722064232383,-150.99,0.00010471,2]
[333347029,1722064232393,-999.99,0.00010471,2]
[333347030,1722064232402,-865.12602919,0.0001063,2]
[333347031,1722064232411,-9999.99,0.0001063,2]
[333347032,1722064232420,-150.99,0.0001063,2]
[333347033,1722064232430,-4987.05,0.0001063,2]
[333347034,1722064232439,-261.2,0.000107,2]
[333347035,1722064232449,-352.0,0.000108,2]
[333347036,1722064232458,-1502.69345188,0.00010865,2]
[333347037,1722064232467,-200.0,0.00010865,2]
[333347038,1722064232477,-1502.69345188,0.00010866,2]
[333347039,1722064232487,-1502.69345188,0.00010871,2]
[333347040,1722064232496,-200.0,0.00010871,2]
[333347041,1722064232505,-200.0,0.00010881,2]
[333347042,1722064232515,-200.0,0.00010882,2]
[333347043,1722064232524,-200.0,0.00010883,2]
[333347044,1722064232533,-200.0,0.00010884,2]
[333347045,1722064232543,-200.0,0.00010887,2]
[333347046,1722064232552,-295.9404,0.00010888,2]
[333347047,1722064232561,-1776.7443,0.00010888,2]
[333347048,1722064232572,-300.0,0.00010888,2]
[333347049,1722064232582,-150.0,0.00010897,2]
[333347050,1722064232591,-31786.8516,0.00010898,2]
[333347051,1722064232601,-163.36125358,0.00010899,2]
[333347052,1722064232610,-201.0228188,0.000109,2]
[333347053,1722064232619,-220.48,0.00010904,2]
[333347054,1722064232628,-500.0,0.00010912,2]
[333347055,1722064232638,-295.52,0.00010959,2]
[333347056,1722064232647,-445.0,0.00010978,2]
[333347057,1722064232657,-621.0,0.00010978,2]
[333347058,1722064232667,-810.0,0.00010978,2]
[333347059,1722064232676,-450.0,0.00010978,2]
[333347060,1722064232685,-1301.0,0.00010978,2]
[333347061,1722064232695,-68185.77113675,0.00010982,2]
[333347062,1722064232711,-568.2110767,0.00010982,2]
[333347068,1722064238008,-270.85,0.00010865,2]
[333347069,1722064238018,-150.99,0.00010865,2]
[333347070,1722064238028,-1074.0,0.00010978,2]
[333347071,1722064238037,-4.16,0.00010982,2]
[333347077,1722064238085,-2500.0,0.00010982,2]
[333347078,1722064238097,-1359.45192626,0.00010982,2]
[333347079,1722064238108,-1773.95845642,0.00010982,2]
[333347080,1722064238168,-5403.3429348,0.00010982,2]
[333347081,1722064238180,-7102.99562553,0.00010982,2]
[333347082,1722064238192,-2564.7511365,0.00010982,2]
[333347083,1722064238203,-845.57482597,0.00010982,2]
[333347084,1722064238250,-1465.2549627,0.00010982,2]
[333347085,1722064238328,-3486.1,0.00010982,2]
[333347086,1722064238340,-257.82237684,0.00010982,2]
[333347087,1722064238351,-430.94909881,0.00010982,2]
[333347088,1722064238361,-500.0,0.00010987,2]
[333347089,1722064238371,-500.0,0.00010987,2]
[333347090,1722064238380,-500.0,0.00010987,2]
[333347091,1722064238389,-620.3,0.00010987,2]
[333347092,1722064238399,-500.0,0.00010987,2]
[333347093,1722064238409,-500.0,0.00010987,2]
[333347095,1722064238419,-500.0,0.00010987,2]
[333347097,1722064238428,-500.0,0.00010987,2]
[333347099,1722064238438,-500.0,0.00010987,2]
[333347101,1722064238448,-500.0,0.00010987,2]
[333347103,1722064238457,-500.0,0.00010987,2]
[333347105,1722064238467,-500.0,0.00010987,2]
[333347107,1722064238478,-500.0,0.00010987,2]
[333347109,1722064238488,-500.0,0.00010987,2]
[333347111,1722064238498,-500.0,0.00010987,2]
[333347112,1722064238508,-500.0,0.00010987,2]
[333347114,1722064238518,-449.10209041,0.00010987,2]
[333347117,1722064238528,-500.0,0.00010987,2]
[333347119,1722064238537,-506.54752466,0.00010987,2]
[333347121,1722064238547,-500.0,0.00010987,2]
[333347123,1722064238556,-405.55606538,0.00010987,2]
[333347125,1722064238567,-500.0,0.00010987,2]
[333347127,1722064238576,-500.0,0.00010987,2]
[333347129,1722064238585,-500.0,0.00010987,2]
[333347131,1722064238594,-333.72613633,0.00010987,2]
[333347133,1722064238604,-500.0,0.00010987,2]
[333347134,1722064238613,-500.0,0.00010987,2]
[333347136,1722064238622,-500.0,0.00010987,2]
[333347138,1722064238631,-500.000001,0.00010987,2]
[333347140,1722064238641,-500.0,0.00010987,2]
[333347142,1722064238651,-500.0,0.00010987,2]
[333347144,1722064238660,-500.0,0.00010987,2]
[333347146,1722064238670,-500.0,0.00010987,2]
[333347148,1722064238679,-500.0,0.00010987,2]
[333347150,1722064238689,-500.0,0.00010987,2]
[333347152,1722064238698,-186.89360078,0.00010987,2]
[333347154,1722064238708,-187.99749969,0.00010987,2]
[333347156,1722064238718,-500.0,0.00010987,2]
[333347158,1722064238727,-500.0,0.00010987,2]
[333347160,1722064238736,-500.0,0.00010987,2]
[333347162,1722064238748,-500.0,0.00010987,2]
[333347163,1722064238759,-214.58948878,0.00010987,2]
[333347165,1722064238770,-500.0,0.00010987,2]
[333347168,1722064238780,-500.0,0.00010987,2]
[333347170,1722064238789,-500.0,0.00010987,2]
[333347172,1722064238801,-500.0,0.00010987,2]
[333347174,1722064238810,-500.0,0.00010987,2]
[333347176,1722064238824,-2102.76,0.00010987,2]
[333347178,1722064238833,-500.0,0.00010993,2]
[333347179,1722064238843,-500.0,0.00010993,2]
[333347181,1722064238852,-500.0,0.00010993,2]
[333347183,1722064238862,-500.0,0.00010993,2]
[333347185,1722064238871,-500.0,0.00010993,2]
[333347187,1722064238881,-2102.76,0.00010993,2]
[333347189,1722064238890,-500.0,0.00010994,2]
[333347190,1722064238900,-500.0,0.00010994,2]
[333347192,1722064238910,-500.0,0.00010994,2]
[333347194,1722064238920,-500.0,0.00010994,2]
[333347196,1722064238929,-500.0,0.00010994,2]
[333347198,1722064238938,-2102.76,0.00010994,2]
[333347200,1722064238948,-500.0,0.00010995,2]
[333347202,1722064238958,-500.0,0.00010995,2]
[333347204,1722064238967,-500.0,0.00010995,2]
[333347206,1722064238977,-500.0,0.00010995,2]
[333347208,1722064238986,-500.0,0.00010995,2]
[333347210,1722064238996,-500.0,0.00010995,2]
[333347212,1722064239005,-500.0,0.00010995,2]
[333347214,1722064239015,-500.0,0.00010995,2]
[333347216,1722064239024,-500.0,0.00010995,2]
[333347218,1722064239035,-500.0,0.00010995,2]
[333347220,1722064239044,-500.0,0.00010995,2]
[333347222,1722064239054,-500.0,0.00010995,2]
[333347224,1722064239063,-500.0,0.00010995,2]
[333347226,1722064239073,-500.0,0.00010995,2]
[333347228,1722064239083,-565.88260564,0.00010995,2]
[333347230,1722064239092,-2102.76,0.00010995,2]
[333347232,1722064239101,-2102.76,0.00010995,2]
[333347234,1722064239110,-2102.76,0.00010995,2]
[333347236,1722064239120,-262.57,0.00010996,2]
[333347238,1722064239130,-500.0,0.00010996,2]
[333347240,1722064239139,-500.0,0.00010996,2]
[333347242,1722064239149,-500.0,0.00010996,2]
[333347244,1722064239158,-500.0,0.00010996,2]
[333347246,1722064239167,-500.0,0.00010996,2]
[333347247,1722064239177,-500.0,0.00010996,2]
[333347249,1722064239186,-500.0,0.00010996,2]
[333347251,1722064239196,-500.0,0.00010996,2]
[333347253,1722064239206,-500.0,0.00010996,2]
[333347255,1722064239216,-500.0,0.00010996,2]
[333347257,1722064239227,-500.0,0.00010996,2]
[333347259,1722064239237,-500.0,0.00010996,2]
[333347261,1722064239247,-454.05517817,0.00010996,2]
[333347263,1722064239256,-500.0,0.00010996,2]
[333347265,1722064239266,-500.0,0.00010996,2]
[333347267,1722064239275,-500.0,0.00010996,2]
[333347269,1722064239285,-500.0,0.00010996,2]
[333347271,1722064239294,-500.0,0.00010996,2]
[333347273,1722064239303,-500.0,0.00010996,2]
[333347274,1722064239312,-500.0,0.00010996,2]
[333347276,1722064239324,-2102.76,0.00010996,2]
[333347278,1722064239334,-2102.76,0.00010996,2]
[333347280,1722064239344,-2102.76,0.00010996,2]
[333347282,1722064239353,-2102.76,0.00010996,2]
[333347284,1722064239363,-1559.00251192,0.00010996,2]
[333347287,1722064239377,-543.75748808,0.00010996,2]
[333347289,1722064239386,-2102.76,0.00010996,2]
[333347291,1722064239396,-46.79754764,0.00010996,2]
[333347294,1722064239422,-577.7598118,0.00010996,2]
[333347296,1722064239434,-716.53939924,0.00010996,2]
[333347298,1722064239446,-761.66324132,0.00010996,2]
[333347300,1722064239455,-140.48939186,0.00010996,2]
[333347376,1722064240198,-37.06183439,0.00010996,2]
[333347378,1722064240208,-500.0,0.00010996,2]
[333347380,1722064240217,-1590.80266559,0.00010996,2]
[333347410,1722064240511,-18409.19733441,0.00010996,2]
[333347412,1722064240520,-204.39078492,0.00010997,2]
[333347414,1722064240530,-3938.54057865,0.00010997,2]
[333347416,1722064240540,-536.33062225,0.00010997,2]
[333347418,1722064240551,-500.0,0.00010997,2]
[333347420,1722064240560,-500.0,0.00010997,2]
[333347422,1722064240570,-500.0,0.00010997,2]
[333347424,1722064240579,-500.0,0.00010997,2]
[333347426,1722064240589,-500.0,0.00010997,2]
[333347428,1722064240598,-500.0,0.00010997,2]
[333347430,1722064240607,-500.0,0.00010997,2]
[333347432,1722064240617,-500.0,0.00010997,2]
[333347434,1722064240628,-500.0,0.00010997,2]
[333347436,1722064240637,-418.26,0.00010997,2]
[333347438,1722064240647,-500.0,0.00010997,2]
[333347440,1722064240656,-500.0,0.00010997,2]
[333347442,1722064240665,-1313.41,0.00010997,2]
[333347444,1722064240675,-1313.41,0.00010997,2]
[333347446,1722064240684,-500.0,0.00010997,2]
[333347448,1722064240694,-449.76045092,0.00010997,2]
[333347450,1722064240703,-500.0,0.00010997,2]
[333347452,1722064240712,-500.0,0.00010997,2]
[333347454,1722064240722,-500.0,0.00010997,2]
[333347456,1722064240732,-500.0,0.00010997,2]
[333347458,1722064240742,-500.0,0.00010997,2]
[333347460,1722064240755,-500.0,0.00010997,2]
[333347462,1722064240765,-500.0,0.00010997,2]
[333347464,1722064240774,-500.0,0.00010997,2]
[333347466,1722064240784,-500.0,0.00010997,2]
[333347468,1722064240793,-500.0,0.00010997,2]
[333347470,1722064240803,-500.0,0.00010997,2]
[333347472,1722064240812,-607.24150795,0.00010997,2]
[333347474,1722064240821,-524.96,0.00010997,2]
[333347476,1722064240834,-500.0,0.00010997,2]
[333347478,1722064240844,-500.0,0.00010997,2]
[333347480,1722064240854,-500.0,0.00010997,2]
[333347482,1722064240863,-500.0,0.00010997,2]
[333347484,1722064240873,-500.0,0.00010997,2]
[333347486,1722064240884,-500.0,0.00010997,2]
[333347488,1722064240894,-500.0,0.00010997,2]
[333347490,1722064240904,-150.0,0.00010997,2]
[333347492,1722064240914,-150.0,0.00010997,2]
[333347494,1722064240924,-500.0,0.00010997,2]
[333347496,1722064240933,-279.63356163,0.00010997,2]
[333347497,1722064240943,-2102.76,0.00010997,2]
[333347499,1722064240953,-2102.76,0.00010997,2]
[333347501,1722064240962,-2102.76,0.00010997,2]
[333347503,1722064240971,-2102.76,0.00010997,2]
[333347505,1722064240980,-2102.76,0.00010997,2]
[333347507,1722064240989,-2102.76,0.00010997,2]
[333347509,1722064240998,-139.29162381,0.00010997,2]
[333347717,1722064243136,-1605.35180376,0.00010997,2]
[333347719,1722064243148,-358.11657243,0.00010997,2]
[333347721,1722064243158,-705.88350757,0.00010997,2]
[333347723,1722064243169,-1165.39763693,0.00010997,2]
[333347726,1722064243180,-231.4788555,0.00010997,2]
[333347728,1722064243189,-129.86733297,0.00010997,2]
[333347731,1722064243216,-1972.89266703,0.00010997,2]
[333347733,1722064243225,-2102.76,0.00010997,2]
[333347735,1722064243234,-2102.97195681,0.00010997,2]
[333347737,1722064243243,-1000.0,0.00010997,2]
[333347739,1722064243253,-500.0,0.00010997,2]
[333347741,1722064243262,-500.0,0.00010997,2]
[333347743,1722064243271,-61.14650039,0.00010998,2]
[333347745,1722064243281,-1390.21,0.00010998,2]
[333347747,1722064243290,-1390.21,0.00010998,2]
[333347749,1722064243300,-1390.21,0.00010998,2]
[333347751,1722064243309,-1390.21,0.00010998,2]
[333347753,1722064243318,-1390.21,0.00010998,2]
[333347755,1722064243328,-1390.21,0.00010998,2]
[333347757,1722064243337,-1390.21,0.00010998,2]
[333347759,1722064243347,-1390.21,0.00010998,2]
[333347761,1722064243358,-1390.21,0.00010998,2]
[333347763,1722064243367,-1390.21,0.00010998,2]
[333347765,1722064243377,-1390.42,0.00010998,2]
[333347767,1722064243386,-692.26,0.00010998,2]
[333347769,1722064243396,-692.26,0.00010998,2]
[333347771,1722064243406,-692.26,0.00010998,2]
[333347773,1722064243416,-692.26,0.00010998,2]
[333347775,1722064243426,-692.26,0.00010998,2]
[333347797,1722064243643,-692.26,0.00010998,2]
[333347799,1722064243653,-692.35,0.00010998,2]